bitfinex/quotes_BTCUSD_20220405
["timestamp","ask_amount","ask_price","bid_price","bid_amount"]
[1649167626534,0.6665,46159.0,46142.0,0.054175]
[1649167626738,0.009,46155.0,46142.0,0.054175]
[1649167626886,0.001,46143.0,46141.0,0.15835]
[1649167626984,0.001,46143.0,46141.0,0.27446617]
[1649167627086,0.001,46143.0,46142.0,0.323429]
[1649167627289,0.001,46143.0,46142.0,0.359729]
[1649167627487,0.001,46143.0,46142.0,0.413903]
[1649167627692,0.01083,46148.0,46142.0,0.390474]
[1649167627790,0.009,46159.0,46143.0,0.323429]
[1649167627888,0.009,46162.0,46142.0,0.3]
[1649167627986,0.009,46168.0,46145.0,0.054166]
[1649167628125,0.22606198,46153.0,46147.0,0.108329]
[1649167628225,0.23689198,46153.0,46148.0,0.373429]
[1649167628323,0.01083,46153.0,46148.0,0.409729]
[1649167628428,0.00211102,46154.0,46148.0,0.409729]
[1649167628524,0.00211102,46154.0,46149.0,0.14674692]
[1649167628681,0.00211102,46154.0,46151.0,0.23931471]
[1649167628825,0.00211102,46154.0,46152.0,0.323429]
[1649167628924,0.01083,46159.0,46152.0,0.359729]
[1649167629022,8.587048,46160.0,46152.0,0.359729]
[1649167629423,0.31083,46159.0,46152.0,0.359729]
[1649167629573,0.3,46159.0,46153.0,0.108319]
[1649167629673,0.3,46159.0,46153.0,0.158319]
[1649167629775,0.01083,46159.0,46153.0,0.158319]
[1649167629873,0.3,46159.0,46153.0,0.158319]
[1649167630133,0.323429,46158.0,46153.0,0.158319]
[1649167630225,0.00672887,46154.0,46153.0,0.108319]
[1649167630378,0.33015787,46154.0,46146.0,0.162493]
[1649167630476,0.00672887,46151.0,46146.0,0.162493]
[1649167630576,0.25080722,46147.0,46146.0,0.162493]
[1649167630680,0.57423622,46147.0,46146.0,0.162493]
[1649167630774,0.57423622,46147.0,46135.0,0.216666]
[1649167630878,0.623429,46146.0,46135.0,0.216666]
[1649167630976,0.623429,46146.0,46138.0,0.054185]
[1649167631076,0.323429,46142.0,46138.0,0.054185]
[1649167631181,2.38015787,46140.0,46128.0,0.001]
[1649167631283,0.00672887,46138.0,46128.0,0.001]
[1649167631381,0.323429,46137.0,46128.0,0.001]
[1649167631679,0.23435589,46131.0,46128.0,0.001]
[1649167631780,0.27421289,46136.0,46128.0,0.217745]
[1649167631903,0.324429,46131.0,46128.0,0.217745]
[1649167632105,0.324429,46131.0,46129.0,0.055186]
[1649167632306,0.001,46131.0,46129.0,0.055186]
[1649167632561,0.001,46131.0,46130.0,0.324429]
[1649167632958,0.001,46131.0,46130.0,0.26569513]
[1649167633057,0.01083,46148.0,46130.0,0.58912413]
[1649167633155,0.00052725,46156.0,46136.0,0.37167978]
[1649167633156,0.3,46154.0,46136.0,0.37167978]
[1649167633259,0.00672887,46155.0,46132.0,0.29371188]
[1649167633358,0.2,46151.0,46131.0,0.21669534]
[1649167633467,0.13435596,46138.0,46131.0,0.21669534]
[1649167633556,0.13435596,46138.0,46131.0,0.162516]
[1649167633655,0.28439348,46139.0,46131.0,0.162516]
[1649167633656,0.29523348,46139.0,46131.0,0.162516]
[1649167633761,0.29523348,46139.0,46132.0,0.02709171]
[1649167634060,0.29523348,46139.0,46133.0,0.05]
[1649167634308,0.323429,46138.0,46134.0,0.108359]
[1649167634411,0.56823891,46138.0,46134.0,0.108359]
[1649167634512,0.323429,46135.0,46133.0,0.054186]
[1649167634611,0.32488394,46135.0,46133.0,0.054186]
[1649167634710,0.323429,46135.0,46133.0,0.054186]
[1649167634810,0.32451227,46135.0,46133.0,0.049186]
[1649167635012,0.323429,46135.0,46133.0,0.049186]
[1649167635217,0.96834,46134.0,46133.0,0.049186]
[1649167635315,0.96834,46134.0,46130.0,0.001]
[1649167635316,1.291769,46134.0,46130.0,0.001]
[1649167635415,0.90045063,46132.0,46130.0,0.001]
[1649167635515,0.323429,46131.0,46130.0,0.001]
[1649167636877,0.324429,46131.0,46130.0,0.001]
[1649167637185,0.624429,46131.0,46130.0,0.001]
[1649167637282,0.635269,46131.0,46130.0,0.001]
[1649167637395,0.635269,46131.0,46124.0,0.054205]
[1649167637396,0.6575,46130.0,46124.0,0.054205]
[1649167637485,0.334269,46129.0,46125.0,0.08]
[1649167637585,0.9575,46128.0,46126.0,0.00050684]
[1649167637678,0.33545639,46129.0,46126.0,0.00050684]
[1649167637679,0.98765787,46127.0,46126.0,0.00050684]
[1649167637781,1.19849787,46127.0,46126.0,0.00050684]
[1649167638031,1.23803509,46127.0,46126.0,0.00050684]
[1649167638232,0.57380622,46127.0,46126.0,0.00050684]
[1649167638330,0.323429,46127.0,46126.0,0.00050684]
[1649167638579,0.323429,46127.0,46125.0,0.08]
[1649167638885,0.00672887,46126.0,46125.0,0.08]
[1649167638982,2.05,46125.0,46114.0,0.001]
[1649167639085,0.323429,46124.0,46114.0,0.001]
[1649167639184,0.00196115,46123.0,46114.0,0.001]
[1649167639284,0.334269,46122.0,46114.0,0.001]
[1649167639490,0.1387524,46121.0,46114.0,0.001]
[1649167639591,0.62842629,46120.0,46118.0,0.108408]
[1649167639689,0.334269,46120.0,46118.0,0.108408]
[1649167639794,0.33015787,46120.0,46118.0,0.108408]
[1649167639942,0.3,46119.0,46105.0,0.001]
[1649167640042,0.2,46112.0,46105.0,0.001]
[1649167640141,0.623429,46111.0,46105.0,0.001]
[1649167640248,2.35,46110.0,46101.0,0.001]
[1649167640343,2.35,46110.0,46098.0,0.001]
[1649167640344,0.00672887,46107.0,46098.0,0.001]
[1649167640441,0.16646893,46110.0,46097.0,0.1009]
[1649167640442,0.00142583,46102.0,46097.0,0.1009]
[1649167640645,0.01085,46103.0,46097.0,0.001]
[1649167640742,0.01085,46103.0,46098.0,0.108444]
[1649167640743,0.323429,46102.0,46098.0,0.108444]
[1649167640841,0.33015787,46107.0,46101.0,0.001]
[1649167640953,0.00672887,46109.0,46101.0,0.001]
[1649167641046,0.30332,46117.0,46101.0,0.001]
[1649167641143,0.01084,46116.0,46101.0,0.001]
[1649167641350,0.01084,46116.0,46102.0,0.323429]
[1649167641442,0.1028,46117.0,46104.0,0.02710706]
[1649167641647,0.00672887,46118.0,46107.0,0.05420174]
[1649167641746,0.323429,46117.0,46107.0,0.05420174]
[1649167641854,0.001,46108.0,46107.0,0.10840374]
[1649167641949,0.001,46108.0,46107.0,0.05420174]
[1649167642044,0.25171924,46116.0,46107.0,0.25499211]
[1649167642146,0.24087924,46116.0,46107.0,0.10420174]
[1649167642247,0.24087924,46116.0,46107.0,0.15420174]
[1649167642344,0.323429,46115.0,46107.0,0.15420174]
[1649167642445,0.24087924,46116.0,46107.0,0.15420174]
[1649167642544,0.30672887,46127.0,46113.0,0.027102]
[1649167642648,0.323429,46126.0,46113.0,0.027102]
[1649167642746,0.323429,46126.0,46113.0,0.08671327]
[1649167642844,0.30672887,46127.0,46113.0,0.08671327]
[1649167642845,0.323429,46124.0,46116.0,0.054196]
[1649167642945,0.01084,46123.0,46116.0,0.108398]
[1649167643127,0.323429,46122.0,46116.0,0.108398]
[1649167643187,0.323429,46122.0,46116.0,0.104202]
[1649167643282,0.01084,46121.0,46116.0,0.104202]
[1649167643383,0.00672887,46118.0,46114.0,0.108404]
[1649167643487,0.11362664,46115.0,46096.0,0.14065254]
[1649167643589,0.00672887,46113.0,46098.0,0.17342654]
[1649167643685,0.334269,46112.0,46101.0,0.04437474]
[1649167643786,0.3,46111.0,46101.0,0.04437474]
[1649167643889,0.323429,46110.0,46104.0,0.054217]
[1649167644083,0.23989145,46108.0,46104.0,0.054217]
[1649167644188,0.01084,46110.0,46106.0,0.108426]
[1649167644287,0.24,46111.0,46107.0,0.00210919]
[1649167644388,0.28246714,46119.0,46107.0,0.00210919]
[1649167644493,0.323429,46116.0,46107.0,0.00210919]
[1649167644687,0.323429,46116.0,46110.0,0.17715606]
[1649167644983,0.00672887,46124.0,46110.0,0.17715606]
[1649167644984,0.01084,46123.0,46110.0,0.17715606]
[1649167645090,0.323429,46122.0,46111.0,0.05]
[1649167645186,0.01084,46121.0,46112.0,0.108392]
[1649167645285,0.323429,46120.0,46112.0,0.37859517]
[1649167645387,0.01084,46119.0,46113.0,0.05]
[1649167645487,0.323429,46118.0,46113.0,0.05]
[1649167645587,0.323429,46116.0,46113.0,0.05]
[1649167645688,0.01084,46120.0,46114.0,0.04336112]
[1649167645800,0.00048983,46132.0,46114.0,0.04336112]
[1649167645887,0.26899366,46130.0,46117.0,0.41461526]
[1649167645989,0.00672887,46125.0,46117.0,0.46461526]
[1649167646087,0.334269,46129.0,46117.0,0.158385]
[1649167646088,0.323429,46124.0,46117.0,0.158385]
[1649167646187,0.334269,46124.0,46118.0,0.05]
[1649167646289,0.334269,46124.0,46117.0,0.158385]
[1649167646391,0.00672887,46123.0,46121.0,0.00046103]
[1649167646492,0.334269,46122.0,46121.0,0.00046103]
[1649167646689,0.59772249,46122.0,46121.0,0.00046103]
[1649167646907,0.59872249,46122.0,46121.0,0.00046103]
[1649167647009,1.8,46121.0,46112.0,0.11001427]
[1649167647165,0.24509138,46115.0,46112.0,0.11001427]
[1649167647259,0.323429,46114.0,46113.0,0.05]
[1649167647362,0.323429,46114.0,46097.0,0.2188]
[1649167647462,0.24509138,46115.0,46097.0,0.2188]
[1649167647463,0.323429,46112.0,46101.0,0.055225]
[1649167647562,0.323429,46106.0,46101.0,0.055225]
[1649167647762,0.28888174,46102.0,46101.0,0.055225]
[1649167647864,0.323429,46102.0,46101.0,0.055225]
[1649167647964,0.319687,46134.0,46101.0,5.7196779]
[1649167648073,0.17472053,46144.0,46101.0,5.7196779]
[1649167648074,2.5162271,46155.0,46135.0,0.19327113]
[1649167648166,8.62375384,46160.0,46154.0,0.0215]
[1649167648268,8.62375384,46160.0,46155.0,0.323491]
[1649167648269,0.64996,46159.0,46155.0,0.323491]
[1649167648414,0.2004,46163.0,46158.0,0.2]
[1649167648517,0.17485387,46172.0,46158.0,0.2]
[1649167648518,0.17485387,46172.0,46159.0,0.3]
[1649167648623,0.35944106,46189.0,46167.0,0.25]
[1649167648624,0.14708539,46183.0,46167.0,0.25]
[1649167648727,0.25863799,46166.0,46164.0,0.25]
[1649167648815,0.14708539,46186.0,46165.0,0.623491]
[1649167648919,0.04708539,46186.0,46180.0,1.59086705]
[1649167649012,0.01,46189.0,46185.0,0.822391]
[1649167649013,0.13606002,46189.0,46185.0,0.822391]
[1649167649112,0.13606002,46189.0,46186.0,0.323491]
[1649167649113,0.01,46189.0,46186.0,0.323491]
[1649167649213,0.0001,46189.0,46186.0,0.323491]
[1649167649416,0.0001,46189.0,46185.0,0.1]
[1649167649515,0.0001,46189.0,46186.0,0.323091]
[1649167649665,0.0001,46189.0,46185.0,0.1]
[1649167649760,0.0001,46189.0,46181.0,0.323122]
[1649167649864,6.65830333,46191.0,46186.0,0.0399]
[1649167649865,6.59377176,46191.0,46186.0,0.0399]
[1649167649968,1.65,46186.0,46167.0,0.15913376]
[1649167650067,0.41627679,46175.0,46167.0,0.162421]
[1649167650163,0.523122,46174.0,46172.0,0.01095025]
[1649167650262,0.33201023,46173.0,46172.0,0.01095025]
[1649167650365,0.523122,46173.0,46172.0,0.01095025]
[1649167650465,0.523122,46173.0,46172.0,0.00653581]
[1649167650661,0.2,46173.0,46172.0,0.00653581]
[1649167650755,0.2,46173.0,46170.0,0.054156]
[1649167650853,0.2,46185.0,46170.0,0.054156]
[1649167650956,0.27844005,46190.0,46171.0,0.623122]
[1649167650957,0.47844005,46190.0,46171.0,0.623122]
[1649167651062,6.59377176,46191.0,46171.0,0.623122]
[1649167651063,0.21703952,46183.0,46171.0,0.3399]
[1649167651211,0.21703952,46183.0,46172.0,0.323122]
[1649167651407,0.21703952,46183.0,46172.0,0.02462614]
[1649167651408,0.25912875,46179.0,46172.0,0.02462614]
[1649167651510,0.323122,46178.0,46172.0,0.02462614]
[1649167651604,0.323122,46178.0,46175.0,0.054141]
[1649167651759,0.323122,46178.0,46161.0,0.08664807]
[1649167651760,0.323122,46175.0,46161.0,0.08664807]
[1649167651866,0.2,46162.0,46161.0,0.08664807]
[1649167651954,0.001,46176.0,46161.0,0.08664807]
[1649167651955,0.2,46167.0,46161.0,0.08664807]
[1649167652058,0.323122,46166.0,46163.0,0.4198553]
[1649167652154,0.323122,46164.0,46163.0,0.4198553]
[1649167652257,0.25912875,46179.0,46163.0,0.4198553]
[1649167652258,0.2,46173.0,46164.0,0.323122]
[1649167652405,0.2,46173.0,46163.0,0.7198553]
[1649167652504,0.2,46169.0,46164.0,0.054162]
[1649167652606,0.323122,46168.0,46164.0,0.054162]
[1649167652807,0.523122,46165.0,46164.0,0.054163]
[1649167653255,0.523122,46165.0,46154.0,0.3]
[1649167653363,0.523122,46165.0,46161.0,0.08664807]
[1649167653364,0.333952,46164.0,46161.0,0.08664807]
[1649167653510,0.523122,46162.0,46161.0,0.08664807]
[1649167653709,0.523122,46162.0,46153.0,0.12994337]
[1649167653807,0.323122,46161.0,46154.0,0.05417]
[1649167653907,0.2,46155.0,46154.0,0.05417]
[1649167654064,0.523122,46155.0,46154.0,0.09750331]
[1649167654255,0.323122,46155.0,46154.0,0.09750331]
[1649167654396,0.82308558,46155.0,46154.0,0.09750331]
[1649167654949,0.522122,46155.0,46154.0,0.09750331]
[1649167655049,0.522122,46155.0,46154.0,0.14750331]
[1649167655149,0.522122,46155.0,46154.0,0.09750331]
[1649167655349,0.561935,46155.0,46154.0,0.04333331]
[1649167655559,0.761935,46155.0,46150.0,0.216615]
[1649167655652,0.522212,46151.0,46150.0,0.216615]
[1649167655903,0.323212,46150.0,46149.0,0.26002149]
[1649167656212,0.27014692,46159.0,46149.0,0.26002149]
[1649167656310,0.250006,46150.0,46149.0,0.26002149]
[1649167656456,0.2,46158.0,46149.0,0.26027451]
[1649167656553,0.199,46154.0,46149.0,0.26027451]
[1649167656657,0.199,46154.0,46150.0,0.05416]
[1649167656753,0.32322,46167.0,46155.0,0.04332804]
[1649167656853,0.01083,46166.0,46158.0,0.053161]
[1649167656954,0.2,46170.0,46158.0,0.053161]
[1649167656955,0.32322,46165.0,46158.0,0.053161]
[1649167657057,0.21881593,46160.0,46158.0,0.053161]
[1649167657153,0.21881593,46160.0,46156.0,0.162472]
[1649167657154,0.6575,46158.0,46156.0,0.162472]
[1649167657260,0.6575,46156.0,46149.0,0.162493]
[1649167657361,0.62322,46157.0,46147.0,0.0999]
[1649167657362,0.6575,46151.0,46147.0,0.0999]
[1649167657462,0.32322,46150.0,46147.0,0.0999]
[1649167657554,0.37395,46150.0,46147.0,0.0999]
[1649167657755,0.67395,46150.0,46148.0,0.108354]
[1649167657858,0.67395,46150.0,46144.0,0.04335246]
[1649167657859,0.3,46149.0,46144.0,0.04335246]
[1649167658008,0.37395,46148.0,46144.0,0.04335246]
[1649167658143,0.2693877,46145.0,46144.0,0.04335246]
[1649167658294,0.31662294,46145.0,46144.0,0.04335246]
[1649167658495,0.61662294,46145.0,46144.0,0.04335246]
[1649167658591,0.31662294,46145.0,46144.0,0.04335246]
[1649167658693,0.31662294,46145.0,46144.0,5.246e-05]
[1649167659199,0.32322,46144.0,46139.0,0.108376]
[1649167659347,0.6575,46141.0,46139.0,0.108376]
[1649167659447,0.01219153,46143.0,46139.0,0.108376]
[1649167659448,1.291579,46140.0,46139.0,0.108376]
[1649167659551,0.323239,46140.0,46139.0,0.108376]
[1649167659648,0.363139,46140.0,46139.0,0.108376]
[1649167659751,0.663139,46140.0,46139.0,0.108376]
[1649167659851,1.65,46139.0,46135.0,0.108389]
[1649167659946,0.2,46137.0,46135.0,0.108389]
[1649167660047,0.334079,46136.0,46135.0,0.108389]
[1649167660302,0.373979,46136.0,46135.0,0.108389]
[1649167660406,0.373979,46136.0,46128.0,0.217723]
[1649167660502,0.2,46133.0,46128.0,0.001]
[1649167660651,0.334079,46132.0,46128.0,0.001]
[1649167660750,0.28618777,46131.0,46128.0,0.001]
[1649167660860,0.523239,46129.0,46128.0,0.001]
[1649167660950,0.323239,46127.0,46120.0,0.26012848]
[1649167661049,0.323239,46127.0,46124.0,0.054211]
[1649167661050,0.01084,46126.0,46124.0,0.054211]
[1649167661150,0.980739,46125.0,46124.0,0.054211]
[1649167661250,1.180739,46125.0,46120.0,0.26012848]
[1649167661348,0.6575,46123.0,46120.0,0.26012848]
[1649167661449,0.6575,46121.0,46120.0,0.04337248]
[1649167661552,0.980739,46121.0,46120.0,0.04337248]
[1649167661651,0.980739,46121.0,46120.0,0.04364272]
[1649167661755,1.020639,46121.0,46120.0,0.04364272]
[1649167661917,0.364139,46121.0,46120.0,0.04364272]
[1649167662123,0.2,46135.0,46122.0,0.66097464]
[1649167662234,0.363139,46136.0,46123.0,0.3]
[1649167662421,0.0399,46136.0,46123.0,0.3]
[1649167662533,0.2286,46150.0,46123.0,0.3]
[1649167662534,0.0399,46147.0,46123.0,0.3]
[1649167662621,0.2,46142.0,46123.0,0.3]
[1649167662714,0.2,46142.0,46125.0,0.17746626]
[1649167662715,0.334079,46141.0,46125.0,0.17746626]
[1649167662817,0.63296856,46141.0,46122.0,1.0551749]
[1649167662915,0.67286856,46141.0,46122.0,1.0551749]
[1649167663020,0.67286856,46141.0,46127.0,0.30502255]
[1649167663021,0.373979,46141.0,46127.0,0.30502255]
[1649167663116,0.373979,46141.0,46130.0,0.054185]
[1649167663263,0.373979,46141.0,46131.0,0.108388]
[1649167663363,0.2,46140.0,46131.0,0.108388]
[1649167663465,0.323239,46139.0,46131.0,0.108388]
[1649167663567,0.363139,46139.0,46131.0,0.108388]
[1649167663665,0.45276827,46138.0,46131.0,0.108388]
[1649167663768,0.334079,46137.0,46131.0,0.108388]
[1649167663917,0.534079,46137.0,46131.0,0.108388]
[1649167664015,0.534079,46137.0,46131.0,0.008388]
[1649167664016,0.323239,46135.0,46131.0,0.008388]
[1649167664117,0.01097447,46132.0,46131.0,0.008388]
[1649167664218,0.01097447,46132.0,46128.0,0.054206]
[1649167664219,0.33421347,46132.0,46128.0,0.054206]
[1649167664320,0.04181918,46129.0,46128.0,0.054206]
[1649167664416,1.0025549,46129.0,46128.0,0.054206]
[1649167664514,0.3342149,46129.0,46128.0,0.054206]
[1649167664621,0.3342149,46129.0,46103.0,0.55532241]
[1649167664622,2.05,46128.0,46103.0,0.55532241]
[1649167664720,2.05,46128.0,46094.0,0.40042271]
[1649167664721,0.2,46104.0,46094.0,0.40042271]
[1649167664827,0.2,46112.0,46094.0,0.40042271]
[1649167664828,0.323239,46099.0,46094.0,0.001]
[1649167664922,0.3,46098.0,46094.0,0.001]
[1649167665025,0.323239,46097.0,46096.0,0.12604601]
[1649167665120,0.13481988,46103.0,46100.0,0.46859898]
[1649167665224,0.0399,46101.0,46095.0,0.30752599]
[1649167665320,0.323433,46100.0,46095.0,0.36175299]
[1649167665519,0.323433,46100.0,46095.0,0.0953335]
[1649167665747,0.323433,46099.0,46095.0,0.0953335]
[1649167665849,0.01084,46105.0,46095.0,0.0953335]
[1649167665946,0.323433,46104.0,46095.0,0.0953335]
[1649167666045,0.0399,46105.0,46095.0,0.0953335]
[1649167666148,0.3,46119.0,46096.0,0.323433]
[1649167666248,0.0399,46116.0,46110.0,0.1524377]
[1649167666349,0.5709,46128.0,46110.0,0.1524377]
[1649167666350,0.04181918,46111.0,46110.0,0.1524377]
[1649167666448,0.04181918,46111.0,46110.0,0.7758707]
[1649167666546,0.01084,46120.0,46110.0,0.4524377]
[1649167666649,0.1399,46131.0,46110.0,0.4524377]
[1649167666948,0.1399,46131.0,46110.0,0.7758707]
[1649167667049,0.39150389,46130.0,46110.0,0.4524377]
[1649167667150,0.39150389,46130.0,46110.0,0.5024377]
[1649167667299,0.01084,46129.0,46110.0,0.5024377]
[1649167667399,0.1,46131.0,46121.0,0.1424588]
[1649167667500,0.1,46131.0,46110.0,0.5024377]
[1649167667501,0.29694785,46119.0,46113.0,0.054195]
[1649167667599,0.323433,46130.0,46112.0,0.2309172]
[1649167667600,0.323433,46118.0,46112.0,0.2309172]
[1649167667699,0.323433,46128.0,46112.0,0.2809172]
[1649167667799,0.01084,46127.0,46112.0,0.2809172]
[1649167667905,0.0399,46130.0,46112.0,0.2809172]
[1649167667999,0.323433,46129.0,46112.0,0.2809172]
[1649167668101,0.0399,46130.0,46112.0,0.2809172]
[1649167668199,0.01084,46129.0,46112.0,0.2809172]
[1649167668299,0.0399,46138.0,46112.0,0.2809172]
[1649167668403,0.334273,46137.0,46112.0,0.2809172]
[1649167668500,0.01084,46137.0,46116.0,0.108388]
[1649167668604,0.01084,46137.0,46130.0,0.26168884]
[1649167668705,0.23190739,46142.0,46131.0,0.3]
[1649167668706,0.01084,46140.0,46131.0,0.3]
[1649167668858,0.20046,46142.0,46131.0,0.35]
[1649167669002,0.323433,46141.0,46131.0,0.35]
[1649167669152,0.20046,46142.0,46131.0,0.35]
[1649167669251,0.323433,46141.0,46131.0,0.35]
[1649167669423,0.01,46144.0,46131.0,0.35]
[1649167669424,0.01,46144.0,46140.0,0.2]
[1649167669509,0.01,46144.0,46132.0,0.3]
[1649167669510,0.01,46144.0,46143.0,0.49738071]
[1649167669606,0.01,46144.0,46143.0,0.79738071]
[1649167669707,0.01,46144.0,46143.0,0.79454309]
[1649167669855,0.01,46144.0,46143.0,0.49738071]
[1649167670156,0.01,46144.0,46143.0,0.54738071]
[1649167670358,0.01,46144.0,46143.0,0.49738071]
[1649167670459,0.333433,46144.0,46143.0,0.49738071]
[1649167670557,0.59901066,46144.0,46143.0,0.49738071]
[1649167670660,0.98078474,46144.0,46143.0,0.49738071]
[1649167670961,1.57690409,46144.0,46138.0,0.0999]
[1649167671094,1.27690409,46144.0,46120.0,0.42]
[1649167671167,0.31026407,46143.0,46120.0,0.42]
[1649167671267,0.31026407,46143.0,46112.0,0.216652]
[1649167671268,0.323433,46139.0,46113.0,0.3]
[1649167671358,0.11980348,46130.0,46118.0,0.0999]
[1649167671465,0.323433,46129.0,46118.0,0.0999]
[1649167671662,0.01084,46128.0,46118.0,0.0999]
[1649167671758,0.39828692,46131.0,46118.0,0.0999]
[1649167671759,0.323433,46127.0,46118.0,0.0999]
[1649167671914,0.001,46119.0,46118.0,0.0999]
[1649167672112,0.28029438,46132.0,46121.0,0.00026458]
[1649167672211,0.323433,46132.0,46121.0,0.00026458]
[1649167672310,0.01084,46131.0,46121.0,0.00026458]
[1649167672409,0.273433,46130.0,46121.0,0.00026458]
[1649167672509,0.01084,46129.0,46121.0,0.00026458]
[1649167672621,0.2777,46128.0,46121.0,0.00026458]
[1649167672710,0.01084,46127.0,46121.0,0.00026458]
[1649167672811,0.2777,46126.0,46124.0,0.00049912]
[1649167673010,0.34181918,46125.0,46124.0,0.00049912]
[1649167673169,0.87829633,46125.0,46124.0,0.00049912]
[1649167673266,0.28854,46125.0,46124.0,0.00049912]
[1649167673769,0.2777,46125.0,46124.0,0.00049912]
[1649167673867,0.2777,46125.0,46123.0,0.043352]
[1649167673965,0.3,46138.0,46123.0,0.043352]
[1649167674066,0.28854,46137.0,46123.0,0.043352]
[1649167674767,0.28854,46137.0,46123.0,0.04877023]
[1649167674868,0.01084,46137.0,46123.0,0.04877023]
[1649167674975,0.01,46144.0,46123.0,0.043352]
[1649167675070,0.01084,46142.0,46126.0,0.054177]
[1649167675169,0.01,46144.0,46130.0,0.043337]
[1649167675269,0.27584001,46143.0,46130.0,0.043337]
[1649167675368,0.32031717,46142.0,46133.0,0.28848822]
[1649167675468,0.275851,46141.0,46133.0,0.28848822]
[1649167675573,0.01084,46140.0,46136.0,0.12851759]
[1649167675675,0.275851,46139.0,46136.0,0.12851759]
[1649167675770,0.275851,46139.0,46126.0,0.01083465]
[1649167675886,0.35,46127.0,46104.0,0.04201781]
[1649167676007,0.35,46127.0,46083.0,0.11398905]
[1649167676129,0.35,46127.0,46103.0,0.11069443]
[1649167676140,2.76368119,46126.0,46103.0,0.11069443]
[1649167676228,2.76368119,46126.0,46079.0,0.31671269]
[1649167676229,1.55,46110.0,46079.0,0.31671269]
[1649167676323,0.3,46109.0,46099.0,0.2664386]
[1649167676442,0.275851,46108.0,46096.0,0.2664386]
[1649167676523,0.275851,46108.0,46095.0,0.2664386]
[1649167676625,0.275851,46108.0,46092.0,0.31184503]
[1649167676626,0.45,46107.0,46103.0,0.00027025]
[1649167676723,0.45,46107.0,46086.0,0.2664386]
[1649167676724,0.54,46104.0,46086.0,0.22210906]
[1649167676945,0.54,46104.0,46083.0,0.27357255]
[1649167676946,0.001,46087.0,46083.0,0.27357255]
[1649167677050,0.275851,46086.0,46083.0,0.27357255]
[1649167677141,0.275851,46086.0,46083.0,0.26857255]
[1649167677240,0.275851,46086.0,46078.0,0.001]
[1649167677343,0.275851,46086.0,46076.0,0.001]
[1649167677344,0.275851,46086.0,46073.0,0.71813903]
[1649167677441,0.054245,46092.0,46073.0,0.45170043]
[1649167677442,0.575851,46085.0,46073.0,0.45170043]
[1649167677546,0.612251,46085.0,46073.0,0.02909254]
[1649167677642,0.3364,46084.0,46073.0,0.02909254]
[1649167677744,0.275851,46083.0,46073.0,0.02909254]
[1649167677942,0.0364,46086.0,46080.0,0.30780392]
[1649167678048,0.89,46093.0,46081.0,0.323211]
[1649167678150,0.89,46093.0,46080.0,0.30780392]
[1649167678243,0.01085,46092.0,46080.0,0.30780392]
[1649167678353,0.889,46093.0,46089.0,0.25080869]
[1649167678743,0.889,46093.0,46089.0,0.24580869]
[1649167678945,0.889,46093.0,46090.0,0.58064859]
[1649167679049,0.889,46093.0,46090.0,0.70278223]
[1649167679050,0.33923796,46093.0,46090.0,0.70278223]
[1649167679146,0.01084,46114.0,46090.0,0.70278223]
[1649167679244,0.2802,46120.0,46092.0,0.2]
[1649167679345,0.2802,46120.0,46091.0,0.25892325]
[1649167679443,0.275851,46109.0,46090.0,0.42957123]
[1649167679550,0.31084,46108.0,46090.0,0.42957123]
[1649167679647,0.275851,46107.0,46090.0,0.42957123]
[1649167679744,0.01084,46106.0,46090.0,0.42457123]
[1649167679842,0.275851,46105.0,46090.0,0.37957123]
[1649167679943,0.31085,46104.0,46090.0,0.25743759]
[1649167680095,0.275851,46103.0,46090.0,0.25743759]
[1649167680192,0.01085,46102.0,46090.0,0.25743759]
[1649167680292,0.3,46104.0,46090.0,0.25743759]
[1649167680394,0.26317167,46101.0,46090.0,0.25743759]
[1649167680494,0.3,46107.0,46090.0,0.25743759]
[1649167680665,0.01084,46106.0,46090.0,0.25243759]
[1649167680756,0.3,46113.0,46094.0,0.00027035]
[1649167680854,0.275851,46112.0,46094.0,0.00027035]
[1649167680955,0.15684953,46110.0,46100.0,0.02061231]
[1649167681057,0.3,46119.0,46102.0,0.23804155]
[1649167681161,0.22479086,46123.0,46102.0,0.23804155]
[1649167681162,0.286691,46118.0,46102.0,0.23804155]
[1649167681259,0.054224,46115.0,46094.0,0.05027035]
[1649167681360,0.286691,46114.0,46094.0,0.05027035]
[1649167681460,0.6575,46113.0,46094.0,0.00027035]
[1649167681560,0.25040059,46103.0,46094.0,0.00027035]
[1649167681660,0.27751612,46102.0,46094.0,0.00027035]
[1649167681768,0.27751612,46102.0,46083.0,0.3]
[1649167681879,0.25979844,46101.0,46081.0,0.043386]
[1649167681963,0.001,46084.0,46076.0,0.3]
[1649167682115,0.1516694,46100.0,46076.0,0.3]
[1649167682268,0.25040059,46103.0,46076.0,0.3]
[1649167682269,0.29389181,46097.0,46076.0,0.054238]
[1649167682371,0.575851,46099.0,46073.0,0.02909254]
[1649167682372,0.1,46077.0,46073.0,0.02909254]
[1649167682462,0.3,46076.0,46073.0,0.01909254]
[1649167682560,0.933351,46075.0,46073.0,0.01909254]
[1649167682664,0.3,46074.0,46073.0,0.01909254]
[1649167682762,0.275851,46074.0,46073.0,0.01909254]
[1649167683062,0.275851,46085.0,46073.0,0.01909254]
[1649167683362,0.275851,46085.0,46073.0,0.01409254]
[1649167683461,0.3,46084.0,46073.0,0.01409254]
[1649167683562,0.933351,46083.0,46073.0,0.01409254]
[1649167683665,0.275851,46082.0,46073.0,0.01409254]
[1649167683760,0.275851,46079.0,46075.0,0.22677009]
[1649167683963,0.275851,46079.0,46073.0,0.01909254]
[1649167684160,0.275851,46079.0,46073.0,0.01409254]
[1649167684425,0.3,46093.0,46074.0,0.323211]
[1649167684426,0.01085,46085.0,46074.0,0.323211]